bitfinex/quotes_SOLUSD_20230905
["timestamp","ask_amount","ask_price","bid_price","bid_amount"]
[1693951291436,61.923,20.283,20.271,0.5]
[1693951291734,61.923,20.283,20.263,36.29296153]
[1693951291735,7.693,20.278,20.265,7.697]
[1693951291945,32.547,20.278,20.266,30.5]
[1693951292143,4.44461036,20.276,20.265,7.697]
[1693951292544,7.694,20.276,20.264,0.5]
[1693951292740,7.694,20.276,20.265,7.697]
[1693951292939,91.7894,20.275,20.265,7.697]
[1693951293144,7.694,20.276,20.265,7.697]
[1693951293453,95.2201,20.274,20.265,7.697]
[1693951294135,95.2201,20.274,20.263,24.872]
[1693951294136,95.2201,20.274,20.263,32.57]
[1693951294340,95.2201,20.274,20.264,0.5]
[1693951294551,95.2201,20.274,20.264,7.698]
[1693951297254,95.2201,20.274,20.265,55.0]
[1693951297444,95.2201,20.274,20.266,0.5]
[1693951297949,95.2201,20.274,20.265,62.697]
[1693951298843,7.694,20.276,20.265,62.697]
[1693951299042,7.694,20.276,20.266,0.5]
[1693951299254,2.85375212,20.275,20.265,62.697]
[1693951299858,3.02293001,20.276,20.266,0.49542548]
[1693951300148,10.97061428,20.277,20.266,7.697]
[1693951305452,10.97061428,20.277,20.265,55.0]
[1693951305951,3.27761428,20.277,20.266,86.75346588]
[1693951306162,24.44461036,20.286,20.27,29.54]
[1693951306353,7.69,20.285,20.273,7.694]
[1693951306554,124.3469,20.288,20.273,7.694]
[1693951306555,4.44461036,20.284,20.274,0.5]
[1693951306765,4.44461036,20.286,20.277,7.693]
[1693951306963,4.44461036,20.288,20.28,29.54]
[1693951307168,7.688,20.291,20.28,37.232]
[1693951307387,4.44461036,20.29,20.281,55.0]
[1693951307969,4.44461036,20.29,20.276,79.105]
[1693951308172,4.44461036,20.29,20.277,0.5]
[1693951308173,32.53,20.289,20.277,0.5]
[1693951308484,127.621,20.29,20.278,7.692]
[1693951308485,4.44461036,20.288,20.278,7.692]
[1693951308790,4.44461036,20.289,20.278,7.692]
[1693951309673,4.44461036,20.289,20.279,55.0]
[1693951309873,4.44461036,20.289,20.28,7.691]
[1693951310585,4.44461036,20.289,20.279,55.0]
[1693951310785,4.44461036,20.289,20.278,55.0]
[1693951311871,4.44461036,20.289,20.278,62.692]
[1693951314973,4.44461036,20.289,20.27,29.54]
[1693951315168,130.624,20.287,20.272,0.5]
[1693951315383,4.44461036,20.286,20.271,7.695]
[1693951315569,7.69,20.284,20.272,20.0]
[1693951315778,4.44461036,20.283,20.272,20.0]
[1693951315975,4.44461036,20.286,20.273,8.194]
[1693951316181,29.54,20.29,20.273,8.194]
[1693951316182,4.44461036,20.289,20.273,8.194]
[1693951316572,4.44461036,20.289,20.274,55.0]
[1693951316782,4.44461036,20.289,20.277,7.693]
[1693951317687,4.44461036,20.289,20.278,55.0]
[1693951317878,4.44461036,20.289,20.278,62.692]
[1693951319678,12.13361036,20.289,20.278,55.0]
[1693951319877,12.13361036,20.289,20.276,7.693]
[1693951319878,12.13361036,20.289,20.277,55.0]
[1693951320074,12.13361036,20.289,20.269,38.77712031]
[1693951320075,36.97461036,20.289,20.269,38.77712031]
[1693951320282,75.0,20.288,20.27,0.5]
[1693951320483,32.539,20.283,20.268,30.5]
[1693951320790,4.44461036,20.282,20.267,7.696]
[1693951320983,7.692,20.28,20.268,0.5]
[1693951321280,4.44461036,20.279,20.268,0.5]
[1693951321485,12.13761036,20.279,20.268,0.5]
[1693951321883,7.693,20.279,20.268,0.5]
[1693951322283,4.44461036,20.278,20.268,0.5]
[1693951322487,7.694,20.275,20.265,0.5]
[1693951322688,7.693,20.278,20.265,7.697]
[1693951322889,7.693,20.278,20.266,0.5]
[1693951323190,4.44461036,20.28,20.269,7.696]
[1693951323383,12.13661036,20.28,20.269,7.696]
[1693951323779,12.13661036,20.28,20.27,55.0]
[1693951325291,12.13661036,20.28,20.269,0.5]
[1693951329693,4.44461036,20.28,20.269,33.061]
[1693951329895,4.44461036,20.281,20.27,55.0]
[1693951330198,4.44461036,20.281,20.273,7.694]
[1693951330497,93.2119,20.282,20.274,55.0]
[1693951330898,7.69,20.285,20.274,55.0]
[1693951331109,24.44461036,20.284,20.274,55.0]
[1693951332695,24.44461036,20.284,20.273,7.694]
[1693951333001,32.13561036,20.284,20.271,7.695]
[1693951333300,32.13561036,20.284,20.272,55.0]
[1693951333998,32.13561036,20.284,20.271,7.695]
[1693951334200,56.98261036,20.284,20.272,55.0]
[1693951336208,24.44461036,20.284,20.272,55.0]
[1693951336401,4.44461036,20.284,20.272,62.695]
[1693951336795,4.44461036,20.287,20.272,62.695]
[1693951336995,44.843,20.286,20.272,62.695]
[1693951337190,24.44461036,20.285,20.272,62.695]
[1693951337401,7.691,20.284,20.272,62.695]
[1693951337595,4.44461036,20.283,20.272,62.695]
[1693951343307,12.13561036,20.283,20.272,62.695]
[1693951346114,12.13561036,20.283,20.272,55.0]
[1693951346411,12.13561036,20.283,20.273,55.0]
[1693951346711,12.13561036,20.283,20.272,0.5]
[1693951347412,12.13561036,20.283,20.271,55.0]
[1693951347911,12.13561036,20.283,20.272,0.5]
[1693951348312,12.13561036,20.283,20.271,55.0]
[1693951348509,12.13561036,20.283,20.272,0.5]
[1693951349015,12.13561036,20.283,20.271,55.0]
[1693951349515,12.13561036,20.283,20.272,0.5]
[1693951349809,4.44461036,20.285,20.273,7.694]
[1693951349993,4.44461036,20.288,20.274,55.5]
[1693951350194,4.44461036,20.288,20.277,7.693]
[1693951350505,4.44461036,20.29,20.278,55.0]
[1693951351094,4.44461036,20.29,20.279,0.5]
[1693951352194,4.44461036,20.29,20.278,62.692]
[1693951352695,4.44461036,20.29,20.279,0.5]
[1693951352897,4.44461036,20.29,20.278,62.692]
[1693951354512,4.44461036,20.29,20.279,0.5]
[1693951354910,12.13261036,20.29,20.278,55.0]
[1693951355109,41.68261036,20.29,20.278,55.0]
[1693951355306,41.68261036,20.29,20.276,7.693]
[1693951356612,41.68261036,20.29,20.277,55.0]
[1693951359006,41.68261036,20.29,20.276,55.0]
[1693951359312,41.68261036,20.29,20.277,0.5]
[1693951359511,41.68261036,20.29,20.276,55.0]
[1693951360013,41.68261036,20.29,20.277,0.497897]
[1693951360399,41.68261036,20.29,20.276,55.0]
[1693951360594,41.68261036,20.29,20.277,0.5]
[1693951361001,41.68261036,20.29,20.276,55.0]
[1693951361201,41.68261036,20.29,20.277,0.49799633]
[1693951362007,41.68261036,20.29,20.277,7.693]
[1693951362213,41.68261036,20.29,20.278,55.0]
[1693951371916,33.99461036,20.29,20.278,55.0]
[1693951372129,4.44461036,20.29,20.279,7.692]
[1693951372311,4.44461036,20.291,20.28,55.0]
[1693951373223,4.44461036,20.291,20.281,7.691]
[1693951373409,4.44461036,20.293,20.282,55.0]
[1693951375728,4.44461036,20.293,20.282,62.691]
[1693951376219,12.13161036,20.294,20.282,62.691]
[1693951376820,12.13161036,20.294,20.28,7.692]
[1693951377013,29.55,20.29,20.275,32.551]
[1693951377215,7.689,20.287,20.276,0.5]
[1693951377418,7.689,20.287,20.276,8.193]
[1693951378312,7.689,20.287,20.277,55.0]
[1693951378512,7.689,20.287,20.278,0.5]
[1693951380510,4.44461036,20.289,20.278,0.5]
[1693951380808,12.13361036,20.289,20.278,0.5]
[1693951382024,12.13361036,20.289,20.277,62.693]
[1693951383411,12.13361036,20.289,20.277,7.693]
[1693951387622,12.13361036,20.289,20.276,7.693]
[1693951387835,55.0,20.288,20.276,7.693]
[1693951388143,12.13361036,20.287,20.276,7.693]
[1693951388323,105.91581036,20.287,20.276,7.693]
[1693951390824,98.22681036,20.287,20.277,55.0]
[1693951391332,98.22681036,20.287,20.278,7.693]
[1693951391538,93.7822,20.287,20.279,55.0]
[1693951392238,93.7822,20.287,20.279,62.692]
[1693951392740,3.15582427,20.289,20.279,62.692]
[1693951398434,4.44461036,20.29,20.279,62.692]
[1693951398941,4.44461036,20.29,20.28,29.55]
[1693951399141,24.44461036,20.294,20.283,7.691]
[1693951399528,24.44461036,20.294,20.284,55.0]
[1693951404045,24.44461036,20.294,20.284,62.69]
[1693951404752,32.13161036,20.294,20.284,62.69]
[1693951408530,12.13161036,20.294,20.284,62.69]
[1693951408737,4.44461036,20.295,20.284,62.69]
[1693951409055,4.44461036,20.299,20.287,7.689]
[1693951409244,4.44461036,20.299,20.288,55.0]
[1693951410340,12.12961036,20.299,20.288,55.0]
[1693951412035,12.12961036,20.299,20.283,7.69]
[1693951412351,12.12961036,20.299,20.28,29.55]
[1693951412555,55.0,20.298,20.281,20.5]
[1693951412852,7.689,20.288,20.275,8.193]
[1693951413048,4.44461036,20.287,20.275,7.693]
[1693951413251,4.44461036,20.287,20.276,0.5]
[1693951413853,4.44461036,20.287,20.276,55.5]
[1693951414248,7.689,20.288,20.276,55.5]
[1693951414653,4.44461036,20.289,20.276,63.193]
[1693951421257,7.689,20.288,20.276,55.5]
[1693951421561,2.68826816,20.289,20.276,8.193]
[1693951421744,2.68826816,20.289,20.278,0.5]
[1693951426459,2.68826816,20.289,20.278,8.192]
[1693951432846,2.68826816,20.289,20.279,55.0]
[1693951433042,29.55,20.29,20.28,8.192]
[1693951438562,2.0445468,20.289,20.28,8.192]
[1693951438868,2.0445468,20.289,20.28,7.692]
[1693951443368,29.55,20.29,20.281,0.5]
[1693951443569,2.35413548,20.289,20.28,0.5]
[1693951444067,10.04313548,20.289,20.28,0.5]
[1693951444267,10.04313548,20.289,20.276,7.693]
[1693951444773,10.04313548,20.289,20.277,0.5]
[1693951445366,10.04313548,20.289,20.277,55.5]
[1693951446663,2.35413548,20.289,20.277,55.5]
[1693951446878,2.35413548,20.289,20.278,7.692]
[1693951447166,2.35413548,20.289,20.279,0.5]
[1693951448571,2.35413548,20.289,20.278,7.692]
[1693951460081,2.35413548,20.289,20.276,8.193]
[1693951464181,32.531,20.288,20.276,0.5]
[1693951464378,58.9883398,20.287,20.271,20.5]
[1693951464680,3.9883398,20.285,20.273,0.5]
[1693951464878,3.9883398,20.285,20.273,20.5]
[1693951465083,11.6783398,20.285,20.273,20.5]
[1693951465471,7.69,20.285,20.273,20.5]
[1693951465772,3.9883398,20.286,20.273,28.194]
[1693951468083,11.6783398,20.286,20.273,28.194]
[1693951469372,46.846454,20.286,20.273,28.194]
[1693951469573,2.0713475,20.285,20.273,28.194]
[1693951469971,46.846454,20.286,20.273,28.194]
[1693951470478,2.22109805,20.285,20.273,28.194]
[1693951473586,2.56608597,20.285,20.273,28.194]
[1693951477380,29.55,20.28,20.273,0.5]
[1693951477586,2.58623094,20.279,20.268,8.196]
[1693951477889,2.58623094,20.279,20.268,7.696]
[1693951478474,2.58623094,20.279,20.269,0.5]
[1693951478685,2.58623094,20.279,20.269,55.5]
[1693951482285,10.27823094,20.279,20.269,0.5]
[1693951482482,10.27823094,20.279,20.269,55.5]
[1693951484291,2.58623094,20.279,20.269,63.196]
[1693951484487,4.44461036,20.28,20.269,62.696]
[1693951484797,4.44461036,20.283,20.27,0.5]
[1693951484992,12.13561036,20.283,20.271,7.695]
[1693951488291,12.13561036,20.283,20.272,55.0]
[1693951489194,4.44461036,20.283,20.272,55.0]
[1693951489399,4.44461036,20.283,20.273,7.694]
[1693951489786,24.44461036,20.284,20.274,55.0]
[1693951489991,12.13561036,20.284,20.274,55.0]
[1693951491603,4.44461036,20.284,20.274,62.694]
[1693951491793,32.13461036,20.284,20.274,62.694]
[1693951493599,32.13461036,20.284,20.274,55.0]
[1693951493909,32.13461036,20.284,20.273,55.0]
[1693951495312,32.13461036,20.284,20.271,55.0]
[1693951495495,32.13461036,20.284,20.272,0.5]
[1693951497501,32.13461036,20.284,20.271,55.0]
[1693951501304,32.13461036,20.284,20.272,0.5]
[1693951503614,32.13461036,20.284,20.271,55.0]
[1693951503796,32.13461036,20.284,20.269,55.0]
[1693951503997,32.13461036,20.284,20.27,0.5]
[1693951508014,32.13461036,20.284,20.27,8.195]
[1693951508312,32.13461036,20.284,20.272,0.5]
[1693951513106,29.55,20.28,20.26,29.55]
[1693951513419,7.694,20.274,20.261,58.199]
[1693951514214,7.694,20.274,20.262,55.0]
[1693951514420,7.694,20.274,20.263,20.5]
[1693951514615,7.694,20.274,20.264,55.0]
[1693951514818,7.694,20.274,20.265,0.5]
[1693951518317,7.694,20.274,20.264,0.5]
[1693951519615,7.694,20.274,20.264,55.5]
[1693951525012,12.13861036,20.276,20.264,55.5]
[1693951527932,12.13861036,20.276,20.264,63.198]
[1693951528118,7.694,20.276,20.264,63.198]
[1693951534242,12.13761036,20.278,20.264,63.198]
[1693951542749,4.44461036,20.278,20.264,117.481]
[1693951543153,4.44461036,20.279,20.264,117.481]
[1693951547860,4.44461036,20.279,20.264,142.13030132]
[1693951554552,4.44461036,20.279,20.265,24.64930132]
[1693951554754,4.44461036,20.281,20.269,86.83]
[1693951554954,4.44461036,20.281,20.27,55.5]
[1693951555155,4.44461036,20.281,20.272,7.695]
[1693951555460,20.0,20.284,20.273,55.5]
[1693951555461,4.44461036,20.283,20.273,55.5]
[1693951556356,4.44461036,20.283,20.273,55.0]
[1693951562059,4.44461036,20.283,20.273,62.694]
[1693951562467,4.44461036,20.283,20.274,0.5]
[1693951562767,4.44461036,20.284,20.274,0.5]
[1693951566968,4.44461036,20.284,20.274,33.053]
[1693951567267,4.44461036,20.289,20.275,55.0]
[1693951567475,4.44461036,20.289,20.278,7.693]
[1693951567656,4.44461036,20.289,20.279,55.0]
[1693951568157,4.44461036,20.29,20.279,62.692]
[1693951569269,4.44461036,20.292,20.279,62.692]
[1693951570174,4.44461036,20.292,20.279,116.935]
[1693951570878,4.44461036,20.292,20.28,0.5]
[1693951571168,4.44461036,20.292,20.282,7.691]
[1693951571350,4.44461036,20.292,20.283,55.0]
[1693951577554,4.44461036,20.297,20.284,0.5]
[1693951577755,12.13061036,20.297,20.284,0.5]
[1693951579071,12.13061036,20.297,20.284,8.19]
[1693951579261,4.44461036,20.297,20.285,55.0]
[1693951579571,4.44461036,20.298,20.285,55.0]
[1693951579957,4.44461036,20.299,20.287,7.689]
[1693951587275,4.44461036,20.299,20.288,55.0]
[1693951587470,4.44461036,20.299,20.288,62.689]
[1693951587777,4.44461036,20.301,20.288,62.689]
[1693951588786,4.44461036,20.303,20.288,62.689]
[1693951596368,4.44461036,20.303,20.289,0.5]
[1693951596573,4.44461036,20.303,20.29,7.688]
[1693951596772,4.44461036,20.303,20.291,55.0]
[1693951599563,4.44461036,20.303,20.29,7.688]
[1693951599781,4.44461036,20.303,20.291,55.0]
[1693951607568,12.12761036,20.303,20.291,55.0]
[1693951613782,4.44461036,20.303,20.292,7.687]
[1693951613984,24.44461036,20.306,20.293,55.0]
[1693951614378,24.44461036,20.306,20.293,62.687]
[1693951615588,32.12661036,20.306,20.293,55.0]
[1693951615792,32.12661036,20.306,20.292,55.0]
[1693951620594,32.12661036,20.306,20.291,7.687]
[1693951620794,32.12661036,20.306,20.292,55.0]
[1693951620995,32.12661036,20.306,20.289,7.688]
[1693951621195,55.0,20.305,20.29,55.0]
[1693951621491,32.12761036,20.304,20.29,55.0]
[1693951625095,32.12761036,20.304,20.29,7.688]
[1693951625294,32.12761036,20.304,20.291,55.0]
[1693951627096,24.44461036,20.304,20.291,62.687]
[1693951627299,4.44461036,20.304,20.291,62.687]
[1693951630783,29.55,20.3,20.285,24.845]
[1693951631092,4.44461036,20.299,20.286,63.189]
[1693951632299,7.684,20.302,20.286,63.189]
[1693951632484,4.44461036,20.301,20.286,63.189]
[1693951637305,7.683,20.304,20.286,63.189]
[1693951637606,4.44461036,20.303,20.286,63.189]
[1693951644606,4.44461036,20.305,20.286,63.189]
[1693951647311,4.44461036,20.305,20.29,29.55]
[1693951647607,4.44461036,20.305,20.294,7.686]
[1693951648108,12.12661036,20.305,20.288,7.689]
[1693951648306,12.12761036,20.303,20.289,62.688]
[1693951648811,4.44461036,20.303,20.29,0.5]
[1693951648999,4.44461036,20.303,20.291,7.688]
[1693951666731,4.44461036,20.303,20.291,17.688]
[1693951668230,4.44461036,20.303,20.292,0.5]
[1693951668931,4.44461036,20.303,20.291,17.688]
[1693951670935,4.44461036,20.303,20.293,7.687]
[1693951671124,4.44461036,20.304,20.293,7.687]
[1693951672337,4.44461036,20.304,20.291,17.687]
[1693951672636,4.44461036,20.304,20.292,55.0]
[1693951676350,4.44461036,20.304,20.292,62.687]
[1693951683046,4.44461036,20.304,20.292,7.687]
[1693951714950,4.44461036,20.304,20.291,10.0]
[1693951715156,7.685,20.298,20.291,10.0]
[1693951715352,4.44461036,20.297,20.291,10.0]
[1693951715565,7.686,20.296,20.291,10.0]
[1693951715770,4.44461036,20.295,20.291,10.0]
[1693951717074,4.44461036,20.298,20.291,10.0]
[1693951721173,7.686,20.297,20.291,10.0]
[1693951721364,4.44461036,20.296,20.291,10.0]
[1693951721566,67.13061036,20.296,20.291,10.0]
[1693951729279,59.44461036,20.296,20.291,10.0]
[1693951729580,4.44461036,20.296,20.291,10.0]
[1693951734669,4.44461036,20.297,20.291,10.0]
[1693951735975,66.32561036,20.297,20.291,10.0]
[1693951736196,55.0,20.296,20.291,10.0]
[1693951736381,56.96461036,20.295,20.291,10.0]
[1693951736880,55.0,20.294,20.291,10.0]
[1693951737190,66.33661036,20.293,20.291,10.0]
[1693951737393,55.0,20.292,20.291,10.0]
[1693951737588,84.28161036,20.292,20.291,10.0]
[1693951738906,104.00993336,20.292,20.291,10.0]
[1693951751490,104.00993336,20.292,20.275,7.694]
[1693951751799,7.69,20.286,20.276,0.5]
[1693951771118,7.69,20.286,20.274,0.5]
[1693951775324,7.69,20.286,20.274,8.194]
[1693951781429,7.689,20.289,20.275,55.0]
[1693951781629,29.55,20.29,20.276,8.193]
[1693951781927,7.689,20.287,20.277,55.0]
[1693951782226,7.689,20.287,20.278,0.5]
[1693951784728,7.689,20.287,20.277,0.5]
[1693951788427,7.689,20.287,20.275,0.5]
[1693951789125,7.689,20.287,20.275,8.193]
[1693951807543,7.689,20.289,20.275,8.193]
[1693951825968,29.55,20.29,20.275,8.193]
[1693951826171,29.55,20.29,20.276,55.0]
[1693951826373,29.55,20.29,20.279,7.692]
[1693951826575,29.55,20.29,20.28,0.5]
[1693951826974,29.55,20.29,20.279,7.692]
[1693951829769,37.238,20.29,20.279,7.692]
[1693951832581,2.40659437,20.291,20.279,32.545]
[1693951832776,2.40659437,20.291,20.28,55.5]
[1693951833086,2.40659437,20.291,20.283,7.691]
[1693951833786,2.40659437,20.291,20.281,0.5]
[1693951834479,7.688,20.29,20.281,0.5]
[1693951836590,2.40659437,20.291,20.28,62.691]
[1693951836773,2.40659437,20.291,20.281,0.5]
[1693951837693,10.09459437,20.291,20.281,0.5]
[1693951839970,7.689,20.288,20.279,0.5]
[1693951840169,7.689,20.288,20.277,0.5]
[1693951840581,32.531,20.288,20.271,0.5]
[1693951840773,7.691,20.283,20.273,0.5]
[1693951840977,7.691,20.283,20.273,20.5]
[1693951842185,7.691,20.283,20.273,18.0]
[1693951842778,7.691,20.283,20.27,37.245]
[1693951842981,7.691,20.283,20.271,55.0]
[1693951843594,7.691,20.283,20.271,62.695]
[1693951844492,7.691,20.283,20.272,20.0]
[1693951853786,7.691,20.283,20.272,27.695]
[1693951857492,3.1288392,20.285,20.273,55.0]
[1693951857806,3.1288392,20.286,20.276,7.693]
[1693951860707,3.1288392,20.286,20.277,55.0]
[1693951860901,3.1288392,20.286,20.278,7.692]
[1693951861106,10.8178392,20.289,20.278,7.692]
[1693951861307,3.1288392,20.289,20.278,7.692]
[1693951861497,3.1288392,20.289,20.277,55.0]
[1693951863210,7.689,20.288,20.277,55.0]
[1693951863908,7.689,20.288,20.277,62.693]
[1693951865995,3.1288392,20.289,20.277,62.693]
[1693951866605,10.8178392,20.289,20.277,62.693]
[1693951869208,3.1288392,20.289,20.277,62.693]
[1693951869511,29.55,20.291,20.282,86.772]
[1693951869711,29.55,20.291,20.285,7.69]
[1693951869909,4.94461036,20.299,20.286,55.0]
[1693951870109,12.62961036,20.299,20.286,55.0]
[1693951870312,12.62961036,20.299,20.285,55.0]
[1693951871116,12.62961036,20.299,20.286,7.689]
[1693951871411,12.62961036,20.299,20.287,55.0]
[1693951871718,4.94461036,20.299,20.29,7.688]
[1693951872008,79.004,20.303,20.29,37.238]
[1693951872201,4.94461036,20.302,20.29,37.238]
[1693951874417,4.94461036,20.303,20.29,37.238]
[1693951874603,4.94461036,20.303,20.291,55.0]
[1693951874919,4.94461036,20.303,20.292,7.687]
[1693951876215,4.94461036,20.303,20.293,55.0]
[1693951876417,4.94461036,20.309,20.296,32.518]
[1693951876603,24.809,20.315,20.296,32.518]
[1693951876604,7.68,20.312,20.297,55.0]
[1693951876806,4.94461036,20.311,20.3,7.684]
[1693951881709,4.94461036,20.311,20.3,37.234]
[1693951883314,24.94461036,20.316,20.301,55.0]
[1693951883513,55.0,20.315,20.304,7.682]
[1693951883713,24.94461036,20.314,20.304,7.682]
[1693951884020,79.94461036,20.314,20.304,7.682]
[1693951884210,79.94461036,20.314,20.301,55.0]
[1693951884419,79.94461036,20.314,20.304,7.682]
[1693951885920,24.94461036,20.314,20.304,7.682]
[1693951886224,4.94461036,20.314,20.304,7.682]
[1693951886825,4.94461036,20.314,20.305,55.0]
[1693951887121,4.94461036,20.317,20.307,32.499]
[1693951887422,97.7134,20.318,20.31,7.68]
[1693951887621,4.94461036,20.317,20.31,7.68]
[1693951888012,4.94461036,20.321,20.31,37.23]
[1693951888211,4.94461036,20.322,20.31,37.23]
[1693951889121,12.62061036,20.322,20.31,37.23]
[1693951889316,12.62061036,20.322,20.311,55.0]
[1693951890414,12.62061036,20.322,20.311,62.68]
[1693951892218,4.94461036,20.322,20.311,7.68]
[1693951892422,4.94461036,20.329,20.312,75.0]
[1693951892625,4.94461036,20.332,20.317,32.484]
[1693951892927,7.673,20.331,20.317,32.484]
[1693951893230,4.94461036,20.33,20.317,32.484]
[1693951893430,4.94461036,20.331,20.317,32.484]
[1693951901737,4.94461036,20.331,20.318,55.0]
[1693951901931,24.94461036,20.335,20.321,7.676]
[1693951902136,55.0,20.334,20.321,7.676]
[1693951902432,4.94461036,20.333,20.321,7.676]
[1693951906230,4.94461036,20.333,20.322,55.0]
[1693951906433,4.94461036,20.334,20.325,7.675]
[1693951906920,4.94461036,20.336,20.325,7.675]
[1693951910629,4.94461036,20.337,20.325,32.472]
[1693951910845,4.94461036,20.337,20.326,55.0]
[1693951911137,97.3463,20.338,20.329,7.673]
[1693951911329,4.94461036,20.341,20.33,29.55]
[1693951915041,4.94461036,20.341,20.329,7.673]
[1693951915350,84.55,20.34,20.326,55.0]
[1693951915534,4.94461036,20.339,20.326,55.0]
[1693951915738,4.94461036,20.339,20.327,7.674]
[1693951916446,4.94461036,20.339,20.328,55.0]
[1693951917241,4.94461036,20.339,20.328,62.673]
[1693951918241,4.94461036,20.339,20.33,29.55]
[1693951918554,4.94461036,20.341,20.331,62.672]
[1693951918935,4.94461036,20.342,20.331,62.672]
[1693951920943,7.669,20.342,20.331,62.672]
[1693951921149,7.668,20.344,20.331,62.672]
[1693951921355,32.439,20.344,20.331,62.672]
[1693951921655,4.94461036,20.343,20.331,62.672]
[1693951925343,97.79,20.347,20.334,7.671]
[1693951925344,4.94461036,20.346,20.334,7.671]
[1693951929043,12.61161036,20.346,20.332,20.0]
[1693951929239,4.94461036,20.344,20.334,7.671]
[1693951929653,4.94461036,20.344,20.332,27.672]
[1693951941866,4.94461036,20.344,20.332,7.672]
[1693951942052,55.0,20.343,20.332,7.672]
[1693951942363,4.94461036,20.342,20.332,7.672]
[1693951946165,4.94461036,20.342,20.327,78.908]
[1693951946369,4.94461036,20.342,20.33,7.673]
[1693951947966,4.94461036,20.342,20.33,37.223]
[1693951949575,4.94461036,20.342,20.33,7.673]
[1693951951058,4.94461036,20.342,20.33,37.223]
[1693951959081,12.61261036,20.344,20.331,55.0]
[1693951959784,12.61261036,20.344,20.33,29.55]
[1693951960287,55.0,20.343,20.33,29.55]
[1693951960576,12.61261036,20.342,20.33,29.55]
[1693951966195,12.61261036,20.342,20.331,55.0]
[1693951966486,4.94461036,20.341,20.33,29.55]
[1693951966785,7.668,20.342,20.331,55.0]
[1693951966986,4.94461036,20.341,20.331,55.0]
[1693951967386,7.668,20.342,20.331,55.0]
[1693951973796,7.668,20.342,20.331,62.672]
[1693951976695,7.668,20.342,20.331,55.0]
[1693951980486,4.94461036,20.341,20.33,29.55]
[1693951980685,7.67,20.339,20.33,29.55]
[1693951981101,7.669,20.341,20.33,29.55]
[1693951981601,4.94461036,20.34,20.33,29.55]
[1693951988806,4.94461036,20.34,20.331,55.0]
[1693951989109,7.669,20.341,20.331,55.0]
[1693951992609,7.669,20.341,20.33,29.55]
[1693951992800,2.66099508,20.34,20.33,29.55]
[1693951993112,3.46173466,20.34,20.33,29.55]
[1693951994897,7.669,20.341,20.33,29.55]
[1693951995302,3.46173466,20.34,20.33,29.55]
[1693951995501,7.669,20.341,20.33,29.55]
[1693951995702,3.46173466,20.34,20.33,29.55]
[1693951995903,7.669,20.341,20.33,29.55]
[1693951996107,3.46173466,20.34,20.33,29.55]
[1693951997201,7.669,20.341,20.33,29.55]
[1693951997909,3.46173466,20.34,20.33,29.55]
[1693951998305,7.669,20.341,20.33,29.55]
[1693951998813,3.46173466,20.34,20.33,29.55]
[1693951999901,7.669,20.341,20.33,29.55]
[1693952000409,3.46173466,20.34,20.33,29.55]